Cogmind - Beta 14 @@@ ROGUE MODE // 2025.01.03 @ 15:14:55 // Winter2021/Sauler Player: Demo Result: Destroyed by Q2-81C(R) with Subdweller Machine Gun Performance ------------- Evolutions (0) 0 Regions Visited (3) 600 Robots Destroyed (15) 75 Value Destroyed (325) 325 Prototype IDs (0) 0 Alien Tech Used (0) 0 Bonus (0) 0 TOTAL SCORE: 1000 Bonus ------- None Cogmind --------- Core Integrity 0/250 Matter 300/300 Energy 105/125 System Corruption 0% Temperature Cool (0) Movement Rolling (230) Ox10 Location -10/Subcaves Parts ------- > --- POWER (1) -------- Light Ion Engine > --- PROPULSION (2) --- Wheel Wheel > --- UTILITY (2) ------ Humpback > --- WEAPON (2) ------- Particle Gun Light EM Pulse Cannon > --- INVENTORY (35) --- Light Ion Engine Light Ion Engine Subdweller Power Source Subdweller Power Source Wheel Wheel Wheel Wheel Wheel Subdweller Monowheel Subdweller Monowheel Subdweller Monowheel Disposable Heat Sink Disposable Heat Sink Large Storage Unit Medium Matter Pod (100) Medium Matter Pod (100) Structural Scanner Subdweller Optics Subdweller Optics Seismic Detector Small Laser Subdweller Laser Subdweller Beam Cannon Subdweller Beam Cannon Subdweller Beam Cannon Subdweller Machine Gun Mining Laser Welding Torch Multitool Peak State ------------ > --- POWER ------------ Light Ion Engine > --- PROPULSION ------- Wheel Wheel > --- UTILITY ---------- Humpback > --- WEAPON ----------- Particle Gun Light EM Pulse Cannon > --- INVENTORY -------- Light Ion Engine Light Ion Engine Subdweller Power Source Subdweller Power Source Wheel Wheel Wheel Wheel Wheel Wheel Subdweller Monowheel Subdweller Monowheel Disposable Heat Sink Disposable Heat Sink Large Storage Unit Medium Matter Pod Medium Matter Pod Structural Scanner Seismic Detector Small Laser Subdweller Laser Subdweller Beam Cannon Subdweller Machine Gun Mining Laser Welding Torch Multitool Scrap Shield Fragment Scrap Shield Fragment [Rating: 13] Favorites ----------- Power Light Ion Engine Engine Light Ion Engine Propulsion Wheel Treads Light Treads Wheel Wheel Utility Humpback Storage Humpback Processor Signal Interpreter Weapon Mining Laser Energy Gun Small Laser Energy Cannon Light EM Pulse Cannon Launcher Grenade Launcher Special Weapon Mining Laser Slashing Weapon Mining Claw Build | -11 -10 -10 -10 ------- Run | Yrd Mat Min Sub Slots Evolved . | . . . . Power . | . . . . Propulsion . | . . . . Utility . | . . . . Weapon . | . . . . Parts Attached 26 | 2 7 5 12 Power 1 | . . 1 . Engine 1 | . . 1 . Core . | . . . . Reactor . | . . . . Propulsion 5 | 2 . 2 1 Treads 2 | 2 . . . Leg . | . . . . Wheel 3 | . . 2 1 Hover . | . . . . Flight . | . . . . Utility 3 | . 1 1 1 Device . | . . . . Storage 2 | . . 1 1 Processor 1 | . 1 . . Hackware . | . . . . Protection . | . . . . Artifact . | . . . . Weapon 17 | . 6 1 10 Energy Gun 6 | . 2 1 3 Energy Cannon 5 | . 1 . 4 Ballistic Gun . | . . . . Ballistic Cannon . | . . . . Launcher 1 | . 1 . . Special Weapon 4 | . 1 . 3 Impact Weapon . | . . . . Slashing Weapon 1 | . 1 . . Piercing Weapon . | . . . . Special Melee Weapon . | . . . . Unidentified Prototypes . | . . . . Parts Lost 7 | . 4 . 3 Power . | . . . . Propulsion 3 | . 2 . 1 Utility . | . . . . Weapon 4 | . 2 . 2 Highest Loss Streak 3 | . 3 . 2 To Critical Strikes . | . . . . Average Slot Usage (%) 80 | . 53 75 86 Engine 10 | . . . 14 Treads 2 | . 26 . . Wheel 24 | . . 22 27 Storage 11 | . . 8 14 Processor 4 | . 5 14 1 Energy Gun 11 | . 14 14 11 Energy Cannon 8 | . . . 11 Special Weapon 6 | . . 14 4 Peak Build Rating 13 | 2 5 8 13 Average Rating 8 | 1 3 5 10 On Entrance 3 | . 2 2 8 Naked Turns . | . . . . Heaviest Build 215 | . 5 25 215 Greatest Support 20 | 3 3 20 20 Greatest Overweight (x) 10 | . 1 1 10 Average Overweight (x) 4 | . . . 7 Largest Inventory Capacity 35 | 5 5 15 35 Average Capacity 25 | 5 5 11 32 Most Carried 30 | 5 5 15 30 Average Carried 14 | 2 4 7 18 Final Capacity 35 | 5 5 15 35 Final Carried 30 | 5 5 13 30 Class Distribution -------------------- 63% | Hauler-Mutant 36% | Mutant Dominant Class ---------------- Mutant | -10/Materials Mutant | -10/Mines Hauler-Mutant | -10/Subcaves Resources | -11 -10 -10 -10 ----------- Run | Yrd Mat Min Sub Matter Collected 665 | 220 . 215 230 Remotely . | . . . . Salvage Created 445 | . 71 127 247 Parts 39 | . 1 20 18 Haulers Intercepted . | . . . . Recyclers Shooed 2 | . 1 1 . Parts Field Recycled . | . . . . Retrieved Matter . | . . . . Parts Self-Destructed 6 | . . . 6 Prevented . | . . . . Kills | -11 -10 -10 -10 ------- Run | Yrd Mat Min Sub Combat Hostiles Destroyed 7 | . 1 . 6 Guns 2 | . . . 2 Cannons 4 | . . . 4 AOE 1 | . 1 . . Classes Destroyed 7 | . 2 3 2 Worker 2 | . . 2 . Builder 3 | . . 3 . Tunneler 2 | . . 2 . Recycler 1 | . 1 . . Grunt 3 | . 1 . 2 Artisan 1 | . . . 1 Subdweller 4 | . . . 4 Best Kill Streak 4 | . 2 4 2 Combat Bots Only 2 | . 1 . 2 Max Kills in Single Turn 1 | . 1 1 1 Gunslinging . | . . . . Exploded 1 | . 1 . . Melee . | . . . . Uniques/NPCs Destroyed . | . . . . Combat | -11 -10 -10 -10 -------- Run | Yrd Mat Min Sub Hostile Shots Fired 103 | . 81 . 22 Missed 33 | . 24 . 9 Damage Taken 929 | . 678 . 251 Core 257 | . 204 . 53 Absorbed by Shields . | . . . . Core Remaining (%) 100 | 100 . . . Volleys Fired 60 | . 9 23 28 Largest 2 | . 2 2 2 Hottest 200 | . 106 140 200 Shots Fired 99 | . 17 36 46 Gun 44 | . 10 17 17 Cannon 21 | . 2 . 19 Launcher 5 | . 5 . . Special 29 | . . 19 10 Kinetic . | . . . . Thermal 81 | . 10 36 35 Explosive 5 | . 5 . . Electromagnetic 13 | . 2 . 11 Robot Hit Streak 12 | . 8 7 12 Robot Miss Streak 2 | . 2 2 1 Penetration Max . | . . . . Secondary Targets . | . . . . Shots Hit Robots 54 | . 14 18 22 Core Hits 29 | . 10 8 11 Critical Kills 1 | . . . 1 Critical Parts Destroyed . | . . . . Critical Strikes 1 | . . . 1 Destroy 1 | . . . 1 Melee Attacks . | . . . . Impact . | . . . . Slashing . | . . . . Piercing . | . . . . Sneak Attacks . | . . . . Combat Hostiles . | . . . . Follow-up Attacks . | . . . . Damage Inflicted 1121 | . 435 293 393 Guns 376 | . 101 149 126 Cannons 245 | . 50 . 195 Explosions 284 | . 284 . . Melee . | . . . . Ramming . | . . . . Kinetic . | . . . . Thermal 617 | . 101 293 223 Explosive 284 | . 284 . . Electromagnetic 220 | . 50 . 170 Impact . | . . . . Slashing . | . . . . Piercing . | . . . . Highest Corruption . | . . . . Average Corruption . | . . . . Corruption Purged . | . . . . Corruption Blocked . | . . . . Overload Shots . | . . . . Overflow Damage 6 | . 2 4 . Projectiles 4 | . . 4 . Explosions 2 | . 2 . . Melee . | . . . . Knockbacks . | . . . . Impact . | . . . . Kinetic . | . . . . Secondary . | . . . . Self-Inflicted Damage 23 | . 23 . . Shots 1 | . 1 . . Rammed . | . . . . Targets Rammed . | . . . . Kicked . | . . . . Crushed . | . . . . Highest Temperature 190 | . 190 30 36 Average Temperature 29 | . 83 11 14 Received Heat Transfer 357 | . 288 . 69 Siege Activations . | . . . . Robots Corrupted . | . . . . Combat Hostiles . | . . . . Parts Fried . | . . . . Impact Corruptions . | . . . . Robots Melted . | . . . . Combat Hostiles . | . . . . Parts Melted . | . . . . Heat Transferred 1392 | . 296 625 471 Parts Sabotaged . | . . . . Parts Stolen . | . . . . Parts Stripped . | . . . . Power Chain Reactions . | . . . . Alert | -11 -10 -10 -10 ------- Run | Yrd Mat Min Sub Peak Influence 205 | . 205 105 . Initial 67 | . . 67 . Average 83 | . 97 83 . Maximum Alert Level 1 | . 1 . . Low Security (%) 96 | 100 90 100 . Level 1 3 | . 9 . . Level 2 . | . . . . Level 3 . | . . . . Level 4 . | . . . . Level 5 . | . . . . High Security . | . . . . Max Security . | . . . . Squads Dispatched 2 | . 2 . . Investigation 1 | . 1 . . Extermination . | . . . . Reinforcement 1 | . 1 . . Assault . | . . . . Garrison . | . . . . Intercept . | . . . . Searches Triggered . | . . . . Construction Impeded . | . . . . Haulers Reinforced . | . . . . Active Scanning Responses . | . . . . Cargo Convoy Interrupts . | . . . . Stealth | -11 -10 -10 -10 --------- Run | Yrd Mat Min Sub Distress Signals 2 | . 2 . . Communications Jammed . | . . . . Distress Signals . | . . . . Times Spotted 25 | . 17 . 8 Peak Tracking Total 8 | . 8 . 2 Tactical Retreats 4 | . 4 . . Traps | -11 -10 -10 -10 ------- Run | Yrd Mat Min Sub Traps Triggered 1 | . 1 . . Indirectly . | . . . . Trap Hack Attempts . | . . . . Triggered . | . . . . Disarmed . | . . . . Reprogrammed . | . . . . Reused . | . . . . Traps Extracted . | . . . . Installed . | . . . . Triggered . | . . . . Machines | -11 -10 -10 -10 ---------- Run | Yrd Mat Min Sub Machines Disabled . | . . . . Max in Single Turn . | . . . . Machines Repaired . | . . . . Machines Dismantled . | . . . . Machines Sabotaged . | . . . . Overloaded Fab Kills . | . . . . Hacking | -11 -10 -10 -10 --------- Run | Yrd Mat Min Sub Machines Accessed . | . . . . Terminals . | . . . . Fabricators . | . . . . Repair Stations . | . . . . Recycling Units . | . . . . Scanalyzers . | . . . . Garrison Access . | . . . . Total Hacks . | . . . . Successful . | . . . . Failed . | . . . . Catastrophic . | . . . . Database Lockouts . | . . . . Manual . | . . . . Terminals . | . . . . Fabricators . | . . . . Repair Stations . | . . . . Recycling Units . | . . . . Scanalyzers . | . . . . Garrison Access . | . . . . Terminal Hacks . | . . . . Fabricator Hacks . | . . . . Repair Station Hacks . | . . . . Recycling Unit Hacks . | . . . . Scanalyzer . | . . . . Garrison Access Hacks . | . . . . Unauthorized Hacks . | . . . . Terminals . | . . . . Fabricators . | . . . . Repair Stations . | . . . . Recycling Units . | . . . . Scanalyzers . | . . . . Garrison Access . | . . . . Data Cores Recovered . | . . . . Used . | . . . . Hacking Detections . | . . . . Full Trace Events . | . . . . Feedback Events . | . . . . Feedback Blocked . | . . . . Robot Schematics Acquired . | . . . . Robots Built . | . . . . Authchips . | . . . . Time . | . . . . Total Robot Build Rating . | . . . . Part Schematics Acquired . | . . . . Parts Built . | . . . . Authchips . | . . . . Time . | . . . . Total Part Build Rating . | . . . . Parts Repaired . | . . . . Time . | . . . . Parts Recycled . | . . . . Recycled Matter . | . . . . Retrieved Matter . | . . . . Retrieved Components . | . . . . Parts Scanalyzed . | . . . . Part Schematics Acquired . | . . . . Parts Damaged . | . . . . Bothacking | -11 -10 -10 -10 ------------ Run | Yrd Mat Min Sub Used RIF Installer . | . . . . Robots Hacked . | . . . . Non-combat . | . . . . Combat . | . . . . Robot Hacks Applied . | . . . . Relay Couplers Released . | . . . . Fabnet Peak Effective % . | . . . . Robots Rewired . | . . . . Allies Hacked . | . . . . Hacks Repelled . | . . . . Allies | -11 -10 -10 -10 -------- Run | Yrd Mat Min Sub Total Allies . | . . . . Largest Group . | . . . . Highest-Rated Group . | . . . . Highest-Rated Ally . | . . . . Total Orders . | . . . . Ally Attacks . | . . . . Total Damage . | . . . . Kills . | . . . . Allies Corrupted . | . . . . Allies Melted . | . . . . Intel | -11 -10 -10 -10 ------- Run | Yrd Mat Min Sub Robot Analysis Total . | . . . . Derelict Logs Recovered . | . . . . Drone Launches . | . . . . Drone Recoveries . | . . . . Exploration | -11 -10 -10 -10 ------------- Run | Yrd Mat Min Sub Turns Passed 1891 | 29 194 328 1340 Spaces Moved 1031 | 42 305 116 568 Core 369 | 42 305 22 . Treads . | . . . . Legs . | . . . . Wheels 662 | . . 94 568 Hover . | . . . . Flight . | . . . . Fastest Speed 50 | 50 50 50 95 Average Speed 136 | 50 50 86 199 Slowest Speed 230 | 50 100 95 230 Overloaded Moves . | . . . . Propulsion Burnouts . | . . . . Robots Hopped . | . . . . Cave-ins Triggered . | . . . . Exploration Rate (%) 27 | 3 65 10 32 Regions Visited 3 Branch Regions 2 Pre-discovered Areas . | . . . . Known Exits Taken 1 | . . 1 . Unknown Exits Taken 2 | 1 1 . . Scrap Searched . | . . . . Spaces Dug . | . . . . Terrain Destroyed 40 | . 34 4 2 Melee . | . . . . Projectile 6 | . . 4 2 AOE 34 | . 34 . . Terrain Rammed . | . . . . Walls Destroyed . | . . . . Machines Disabled . | . . . . Actions | -11 -10 -10 -10 --------- Run | Yrd Mat Min Sub Total 1355 | 48 328 274 705 Wait 169 | . . 107 62 Move 1028 | 41 304 115 568 Hop . | . . . . Pick Up 56 | 5 4 18 29 Fast Attach 7 | 2 3 1 1 Attach 11 | . 3 4 4 Detach 2 | . 1 . 1 Swap 8 | . 1 . 7 Drop 14 | . 3 6 5 Fire 60 | . 9 23 28 Melee . | . . . . Ram . | . . . . Kick . | . . . . Crush . | . . . . Escape Stasis . | . . . . Rewire . | . . . . Trap . | . . . . Miscellaneous . | . . . . Route ------- -11/Scrapyard -10/Materials (discovered 3 exits: [*Mat x2] / [*Min]) -10/Mines -10/Subcaves History --------- Turn | Location | Event 4 | -11/Scrapyard | Discovered new exit (range 16) 30 | -11/Scrapyard | Entered Materials 138 | -10/Materials | Discovered new exit (range 3) 185 | -10/Materials | Discovered new exit (range 16) 205 | -10/Materials | Core integrity fell below 50% 212 | -10/Materials | Discovered new exit (range 16) 223 | -10/Materials | Core integrity fell below 20% 224 | -10/Materials | Entered Mines 252 | -10/Mines | Lost 3 parts (2n1w) 286 | -10/Mines | Discovered new exit (range 3) 303 | -10/Mines | Build established: Mutant 546 | -10/Mines | Identified exit to Subcaves 552 | -10/Mines | Entered Subcaves 584 | -10/Subcaves | Shifting Twisted Machinery released Sub. Beam Cannon 677 | -10/Subcaves | A swath of the cavern ceiling suddenly collapsed 953 | -10/Subcaves | Shifting Twisted Machinery released Sub. Laser 982 | -10/Subcaves | Build established: Hauler-Mutant 1828 | -10/Subcaves | Shifting Twisted Machinery released Sub. Laser 1842 | -10/Subcaves | Shifting Twisted Machinery released Slug Cannon 1892 | -10/Subcaves | Destroyed by Q2-81C(R) with Subdweller Machine Gun Last Messages --------------- 01734_ Acquired Corrupted Sub. Optics. 01737_ Acquired Sub. Beam Cannon. 01738_ Dropped Corrupted Sub. Optics. 01739_ Acquired Corrupted Sub. Optics. 01740_ Dropped Scrap Shield Fragment. 01757_ Wheel destroyed. 01760_ RB-1JC(R) destroyed. 01766_ Acquired 10 matter. 01768_ Subatomizers dissect the Sub. Beam Cannon. 01773_ Acquired Sub. Beam Cannon. 01795_ C2-LRI(R) destroyed. 01800_ Acquired Corrupted Sub. Monowheel. 01803_ Subatomizers dissect the Corrupted Sub. Optics. 01806_ Acquired Corrupted Sub. Optics. Sub. Laser falls loose from the Twisted Machinery. Slug Cannon falls loose from the Twisted Machinery. Map ----- +----------------------------------------------------+ | ?????????????????????????????????????????????????? | | ?????????????????????????????????????????????????? | | ?????????????????????????????????????????????????? | | ?????????????????????????????????????????????????? | | ?????????????????????????????????????????????????? | | ?????????????????????????????????????????????????? | | ?????????????????????????????????????????????????? | | ?????????????????????????????????????????????????? | | ?????????????????????????????????????????????????? | | ?????????????????????????????????????????????????? | | ?????????????????????????????????????????????????? | | ?????????????????????????????????????????????????? | | ?????????????????????????????????????????????????? | | ?????????????????????????????????????????????????? | | ?????????????????????????????????????????????????? | | ?????????????????????????????????????????????????? | | ???????????????????????????????#?????????????????? | | ?????????????????????????????? ###???????????????? | | ?????????????????????????????? # ????????????????? | | ????????????????????????????? ?????????????????? | | ????????????????????????????? #?????????????????? | | ???????????????????????????? ##????????????????? | | ???????????????????????????? ?????????????????? | | ??????????###??###########? ???????????????????? | | ??????????# ### ## #????????????????????? | | ?????????## @R#?????????????????????? | | ?????????# ####??????????????????? | | ?????????# #??????????????????? | | ?????????# " ""#??????????????????? | | ????????# #### """ ["""#??????????????????? | | ????????????????# ""##"##"""#?????????????????? | | ????????????????# "####?#]" ?????????????????? | | ????????????????## ##??? ""?????????????????? | | ?????????????????## " ##??##??????????????????? | | ??????????????##### #??????????????????????? | | ?????????????## " ## #???????????????????? | | ?????????##### "" " #???????????????????? | | ?????##### %### #???????????????????? | | ????## #??# ??????????????????? | | ??### #????# ?????????????????? | | ### #### #" ##?????????????????????????? | | # ####### &&### #??????????????????????????? | | ?# ## #??# %&&## "###???????????????????????? | | ?## ## ##?# &&### ##??????????????????????? | | ### ### #?# ###????????????????????? | | "# ### ### ????????????????????? | | ### ???????????????????? | | " ?????????????????? | | ### ## ????????????????? | | ??# ## ##?# ?????????????????? | +----------------------------------------------------+ Best States ------------- Heat Dissipation 25 Energy Generation 10 Energy Capacity 125 Matter Stores 300 Matter Capacity 300 Sight Range 16 Terrain Scan Density 10 Evasion (%) 50 Item Schematics ----------------- None Robot Schematics ------------------ None Fabricated ------------ Nothing Alien Tech Used ----------------- None Achievements -------------- None Challenges ------------ None Game ------ Seed BehemothHeatBiocell Manual? 0 Play Time 00:12:20 Cumulative 118.9 hours Start 2025.01.03 @ 15:03:27 End 2025.01.03 @ 15:14:55 Sessions 1 Manual Loads 0 Difficulty Rogue Special Mode Winter2021/Sauler Game No. 140 Rogue 140 Adventurer 0 Explorer 0 Win Type - Total 1 Types 1/0/0/0/0/0/0/0/0 Lore% 52 Gallery% 67 Achievement% 53 Wizard Run 0 Options --------- Layout 1 ASCII 0 Keyboard 0 Movement Numpad Keybinds 0 Fullscreen 1 Font 24/Smallcaps Map View 50x35 Zoom Use 0% Tactical HUD 1 Map Filters NONE Filters NONE Steam 1 RUN: e4a0d1d6-cae3-48a1-a193-02cda211a122